[Event "Titled Tuesday Blitz October 31 Late 2023"]
[White "Balla, Tamas-Kristof"]
[Black "Seemann, Jakub"]
[WhiteFideId "1208497"]
[BlackFideId "21874697"]
[WhiteElo "2337"]
[BlackElo "2625"]
[Result "0-1"]
[Round "1"]
[TimeControl "180+1"]
[Date "2023.10.31"]
[WhiteClock "0:00:37"]
[BlackClock "0:01:07"]
[Board "112"]

1. e4 {[%clk 0:02:59]}  c6 {[%clk 0:02:21]} 2. d4 {[%clk 0:02:58]}  d5 {[%clk 0:02:21]} 3. exd5 {[%clk 0:02:59]}  cxd5 {[%clk 0:02:21]} 4. c4 {[%clk 0:02:59]}  Nf6 {[%clk 0:02:21]} 5. Nc3 {[%clk 0:02:59]}  Nc6 {[%clk 0:02:22]} 6. Bg5 {[%clk 0:02:59]}  Be6 {[%clk 0:02:21]} 7. Nf3 {[%clk 0:02:57]}  g6 {[%clk 0:02:18]} 8. Qb3 {[%clk 0:02:57]}  Na5 {[%clk 0:02:17]} 9. Qa3 {[%clk 0:02:52]}  Nxc4 {[%clk 0:02:14]} 10. Bxc4 {[%clk 0:02:49]}  dxc4 {[%clk 0:02:15]} 11. O-O {[%clk 0:02:30]}  Bg7 {[%clk 0:02:15]} 12. Rad1 {[%clk 0:02:29]}  O-O {[%clk 0:02:14]} 13. Rfe1 {[%clk 0:02:30]}  Re8 {[%clk 0:02:06]} 14. d5 {[%clk 0:02:06]}  Bg4 {[%clk 0:01:58]} 15. Ne4 {[%clk 0:01:50]}  Bxf3 {[%clk 0:01:52]} 16. Qxf3 {[%clk 0:01:49]}  Nxe4 {[%clk 0:01:49]} 17. Qxe4 {[%clk 0:01:43]}  Rc8 {[%clk 0:01:46]} 18. Bxe7 {[%clk 0:01:38]}  Qd7 {[%clk 0:01:46]} 19. d6 {[%clk 0:01:38]}  Bxb2 {[%clk 0:01:45]} 20. Rb1 {[%clk 0:01:11]}  c3 {[%clk 0:01:43]} 21. Qf4 {[%clk 0:01:09]}  Ba3 {[%clk 0:01:16]} 22. Rb3 {[%clk 0:00:37]}  Bxd6 {[%clk 0:01:07]} 0-1


[Site "https://www.chess.com"]

[Event "Titled Tuesday Blitz October 31 Late 2023"]
[White "Bjelobrk, Igor"]
[Black "Freile Martin, Javier"]
[WhiteFideId "4300726"]
[BlackFideId "3600165"]
[WhiteElo "2623"]
[BlackElo "2335"]
[Result "1-0"]
[Round "1"]
[TimeControl "180+1"]
[Date "2023.10.31"]
[WhiteClock "0:00:13"]
[BlackClock "0:00:00"]
[Board "113"]

1. d4 {[%clk 0:02:59]}  Nf6 {[%clk 0:02:59]} 2. c4 {[%clk 0:02:59]}  g6 {[%clk 0:02:59]} 3. Nc3 {[%clk 0:02:58]}  Bg7 {[%clk 0:02:58]} 4. Nf3 {[%clk 0:02:59]}  d6 {[%clk 0:02:59]} 5. e4 {[%clk 0:02:58]}  O-O {[%clk 0:02:58]} 6. Be2 {[%clk 0:02:58]}  Na6 {[%clk 0:02:58]} 7. O-O {[%clk 0:02:55]}  e5 {[%clk 0:02:57]} 8. Be3 {[%clk 0:02:54]}  exd4 {[%clk 0:02:55]} 9. Nxd4 {[%clk 0:02:54]}  Re8 {[%clk 0:02:54]} 10. f3 {[%clk 0:02:49]}  c6 {[%clk 0:02:52]} 11. Re1 {[%clk 0:02:48]}  Nc7 {[%clk 0:02:49]} 12. Qd2 {[%clk 0:02:46]}  d5 {[%clk 0:02:47]} 13. exd5 {[%clk 0:02:46]}  cxd5 {[%clk 0:02:45]} 14. c5 {[%clk 0:02:46]}  Ne6 {[%clk 0:02:31]} 15. Nxe6 {[%clk 0:02:41]}  Bxe6 {[%clk 0:02:29]} 16. Bd4 {[%clk 0:02:37]}  a6 {[%clk 0:02:24]} 17. b4 {[%clk 0:02:36]}  Qc7 {[%clk 0:02:21]} 18. a4 {[%clk 0:02:31]}  Rad8 {[%clk 0:01:59]} 19. Rad1 {[%clk 0:02:28]}  Nh5 {[%clk 0:01:55]} 20. b5 {[%clk 0:02:22]}  axb5 {[%clk 0:01:38]} 21. Nxb5 {[%clk 0:02:16]}  Qc6 {[%clk 0:01:23]} 22. Nd6 {[%clk 0:02:11]}  Qxa4 {[%clk 0:01:17]} 23. Nxe8 {[%clk 0:02:06]}  Qxe8 {[%clk 0:01:16]} 24. Rb1 {[%clk 0:01:55]}  Qc6 {[%clk 0:01:14]} 25. Rb6 {[%clk 0:01:51]}  Qc7 {[%clk 0:01:13]} 26. Reb1 {[%clk 0:01:49]}  Bc8 {[%clk 0:01:12]} 27. Bf2 {[%clk 0:01:39]}  d4 {[%clk 0:01:07]} 28. R6b5 {[%clk 0:01:31]}  d3 {[%clk 0:01:06]} 29. Bf1 {[%clk 0:01:29]}  Nf4 {[%clk 0:01:05]} 30. g3 {[%clk 0:01:25]}  Ne6 {[%clk 0:01:01]} 31. R1b3 {[%clk 0:01:22]}  Nd4 {[%clk 0:00:43]} 32. Bxd4 {[%clk 0:01:14]}  Bxd4+ {[%clk 0:00:43]} 33. Kg2 {[%clk 0:01:15]}  Qd7 {[%clk 0:00:40]} 34. Qxd3 {[%clk 0:00:41]}  Qh3+ {[%clk 0:00:38]} 35. Kh1 {[%clk 0:00:41]}  Qe6 {[%clk 0:00:32]} 36. Qe4 {[%clk 0:00:35]}  Qf6 {[%clk 0:00:28]} 37. Kg2 {[%clk 0:00:26]}  Bf5 {[%clk 0:00:24]} 38. Qxb7 {[%clk 0:00:25]}  Qg5 {[%clk 0:00:19]} 39. f4 {[%clk 0:00:13]}  Qh5 {[%clk 0:00:19]} 40. Qf3 {[%clk 0:00:10]}  Bh3+ {[%clk 0:00:19]} 41. Kh1 {[%clk 0:00:10]}  Qxf3+ {[%clk 0:00:20]} 42. Rxf3 {[%clk 0:00:10]}  Bg4 {[%clk 0:00:19]} 43. Rd3 {[%clk 0:00:10]}  Re8 {[%clk 0:00:18]} 44. Kg2 {[%clk 0:00:09]}  Re1 {[%clk 0:00:19]} 45. h3 {[%clk 0:00:10]}  Bxh3+ {[%clk 0:00:19]} 46. Kxh3 {[%clk 0:00:11]}  Rxf1 {[%clk 0:00:19]} 47. Rxd4 {[%clk 0:00:11]}  Kg7 {[%clk 0:00:18]} 48. Kg2 {[%clk 0:00:11]}  h5 {[%clk 0:00:19]} 49. Kxf1 {[%clk 0:00:11]}  Kf6 {[%clk 0:00:19]} 50. c6 {[%clk 0:00:12]}  Ke6 {[%clk 0:00:00]} 51. c7 {[%clk 0:00:13]} 1-0


[Site "https://www.chess.com"]

[Event "Titled Tuesday Blitz October 31 Late 2023"]
[White "Muhammad Shahzeb"]
[Black "Fiorito, Francisco"]
[WhiteFideId "7804806"]
[BlackFideId "180165"]
[WhiteElo "2330"]
[BlackElo "2615"]
[Result "1/2-1/2"]
[Round "1"]
[TimeControl "180+1"]
[Date "2023.10.31"]
[WhiteClock "0:00:11"]
[BlackClock "0:00:09"]
[Board "114"]

1. e4 {[%clk 0:03:00]}  c5 {[%clk 0:02:59]} 2. Nc3 {[%clk 0:03:00]}  Nc6 {[%clk 0:02:59]} 3. f4 {[%clk 0:03:01]}  g6 {[%clk 0:02:59]} 4. Nf3 {[%clk 0:03:02]}  Bg7 {[%clk 0:02:59]} 5. Bb5 {[%clk 0:03:03]}  Nd4 {[%clk 0:02:58]} 6. Bc4 {[%clk 0:03:03]}  e6 {[%clk 0:02:59]} 7. d3 {[%clk 0:03:03]}  Ne7 {[%clk 0:02:59]} 8. Nxd4 {[%clk 0:03:04]}  cxd4 {[%clk 0:02:59]} 9. Ne2 {[%clk 0:03:05]}  d5 {[%clk 0:02:58]} 10. Bb3 {[%clk 0:03:05]}  dxe4 {[%clk 0:02:50]} 11. dxe4 {[%clk 0:03:05]}  b6 {[%clk 0:02:47]} 12. O-O {[%clk 0:03:04]}  Bb7 {[%clk 0:02:47]} 13. Ng3 {[%clk 0:03:03]}  O-O {[%clk 0:02:45]} 14. f5 {[%clk 0:03:03]}  exf5 {[%clk 0:02:36]} 15. exf5 {[%clk 0:03:04]}  Nd5 {[%clk 0:02:31]} 16. Qg4 {[%clk 0:02:15]}  Kh8 {[%clk 0:01:52]} 17. fxg6 {[%clk 0:02:11]}  fxg6 {[%clk 0:01:49]} 18. Bg5 {[%clk 0:02:10]}  Qd6 {[%clk 0:01:37]} 19. Ne4 {[%clk 0:02:05]}  Qe5 {[%clk 0:01:34]} 20. Qh4 {[%clk 0:01:25]}  Ne3 {[%clk 0:01:24]} 21. Bxe3 {[%clk 0:01:16]}  dxe3 {[%clk 0:01:23]} 22. Ng5 {[%clk 0:01:05]}  h6 {[%clk 0:01:17]} 23. Ne6 {[%clk 0:00:34]}  Rxf1+ {[%clk 0:01:08]} 24. Rxf1 {[%clk 0:00:29]}  e2 {[%clk 0:01:06]} 25. Re1 {[%clk 0:00:23]}  Re8 {[%clk 0:00:44]} 26. Nxg7 {[%clk 0:00:16]}  Kxg7 {[%clk 0:00:41]} 27. Qf2 {[%clk 0:00:13]}  Re7 {[%clk 0:00:39]} 28. c3 {[%clk 0:00:13]}  Ba6 {[%clk 0:00:35]} 29. Qd4 {[%clk 0:00:13]}  h5 {[%clk 0:00:21]} 30. a4 {[%clk 0:00:09]}  Kh6 {[%clk 0:00:18]} 31. Qxe5 {[%clk 0:00:08]}  Rxe5 {[%clk 0:00:19]} 32. c4 {[%clk 0:00:07]}  Re4 {[%clk 0:00:17]} 33. Kf2 {[%clk 0:00:06]}  Bxc4 {[%clk 0:00:18]} 34. Bxc4 {[%clk 0:00:05]}  Rxc4 {[%clk 0:00:18]} 35. Rxe2 {[%clk 0:00:05]}  Rxa4 {[%clk 0:00:19]} 36. g3 {[%clk 0:00:05]}  Rb4 {[%clk 0:00:18]} 37. h4 {[%clk 0:00:05]}  a5 {[%clk 0:00:17]} 38. Kg2 {[%clk 0:00:05]}  Kg7 {[%clk 0:00:17]} 39. Kh3 {[%clk 0:00:06]}  Kf6 {[%clk 0:00:18]} 40. Rc2 {[%clk 0:00:06]}  a4 {[%clk 0:00:18]} 41. Rc6+ {[%clk 0:00:06]}  Kg7 {[%clk 0:00:17]} 42. Rc2 {[%clk 0:00:07]}  b5 {[%clk 0:00:17]} 43. Kg2 {[%clk 0:00:08]}  Rb3 {[%clk 0:00:18]} 44. Kh3 {[%clk 0:00:08]}  b4 {[%clk 0:00:18]} 45. Rc7+ {[%clk 0:00:08]}  Kh6 {[%clk 0:00:18]} 46. Ra7 {[%clk 0:00:09]}  Rxb2 {[%clk 0:00:16]} 47. Rxa4 {[%clk 0:00:09]}  Kg7 {[%clk 0:00:16]} 48. Ra6 {[%clk 0:00:09]}  Rc2 {[%clk 0:00:16]} 49. Rb6 {[%clk 0:00:10]}  Rc4 {[%clk 0:00:16]} 50. Kg2 {[%clk 0:00:10]}  Kf7 {[%clk 0:00:15]} 51. Kh3 {[%clk 0:00:11]}  Rd4 {[%clk 0:00:14]} 52. Kg2 {[%clk 0:00:10]}  Rd2+ {[%clk 0:00:11]} 53. Kf3 {[%clk 0:00:11]}  Rb2 {[%clk 0:00:11]} 54. Kf4 {[%clk 0:00:11]}  b3 {[%clk 0:00:09]} 55. Kg5 {[%clk 0:00:11]}  Rb1 {[%clk 0:00:10]} 56. Rxg6 {[%clk 0:00:10]}  Rg1 {[%clk 0:00:09]} 57. Rb6 {[%clk 0:00:11]}  Rxg3+ {[%clk 0:00:09]} 58. Kxh5 {[%clk 0:00:12]}  Kg7 {[%clk 0:00:08]} 59. Rb7+ {[%clk 0:00:11]}  Kf6 {[%clk 0:00:09]} 60. Kh6 {[%clk 0:00:11]}  Rg6+ {[%clk 0:00:06]} 61. Kh5 {[%clk 0:00:11]}  Rg3 {[%clk 0:00:07]} 62. Rb6+ {[%clk 0:00:11]}  Ke5 {[%clk 0:00:07]} 63. Kh6 {[%clk 0:00:10]}  Kd4 {[%clk 0:00:08]} 64. h5 {[%clk 0:00:11]}  Kc3 {[%clk 0:00:08]} 65. Kh7 {[%clk 0:00:11]}  b2 {[%clk 0:00:09]} 66. h6 {[%clk 0:00:11]}  Kc2 {[%clk 0:00:09]} 67. Rxb2+ {[%clk 0:00:07]}  Kxb2 {[%clk 0:00:09]} 68. Kh8 {[%clk 0:00:08]}  Rc3 {[%clk 0:00:09]} 69. h7 {[%clk 0:00:09]}  Rc8+ {[%clk 0:00:09]} 70. Kg7 {[%clk 0:00:10]}  Rc7+ {[%clk 0:00:10]} 71. Kg8 {[%clk 0:00:10]}  Kb3 {[%clk 0:00:08]} 72. h8=Q {[%clk 0:00:10]}  Rc8+ {[%clk 0:00:08]} 73. Kg7 {[%clk 0:00:11]}  Rxh8 {[%clk 0:00:09]} 74. Kxh8 {[%clk 0:00:11]} 1/2-1/2


[Site "https://www.chess.com"]

[Event "Titled Tuesday Blitz October 31 Late 2023"]
[White "Zivic, Dragan"]
[Black "ArtemDyachuk"]
[WhiteFideId "904740"]
[WhiteElo "2328"]
[BlackElo "2612"]
[Result "0-1"]
[Round "1"]
[TimeControl "180+1"]
[Date "2023.10.31"]
[WhiteClock "0:00:17"]
[BlackClock "0:00:18"]
[Board "116"]

1. c4 {[%clk 0:02:57]}  e5 {[%clk 0:02:58]} 2. Nc3 {[%clk 0:02:57]}  Nf6 {[%clk 0:02:57]} 3. Nf3 {[%clk 0:02:57]}  e4 {[%clk 0:02:57]} 4. Ng5 {[%clk 0:02:52]}  c6 {[%clk 0:02:57]} 5. Ngxe4 {[%clk 0:02:52]}  Nxe4 {[%clk 0:02:57]} 6. Nxe4 {[%clk 0:02:52]}  d5 {[%clk 0:02:57]} 7. cxd5 {[%clk 0:02:50]}  cxd5 {[%clk 0:02:58]} 8. Ng3 {[%clk 0:02:50]}  h5 {[%clk 0:02:58]} 9. e3 {[%clk 0:02:40]}  h4 {[%clk 0:02:58]} 10. Ne2 {[%clk 0:02:40]}  Nc6 {[%clk 0:02:57]} 11. h3 {[%clk 0:02:39]}  Bf5 {[%clk 0:02:56]} 12. a3 {[%clk 0:02:37]}  Qf6 {[%clk 0:02:53]} 13. d4 {[%clk 0:02:37]}  Bd6 {[%clk 0:02:51]} 14. Nc3 {[%clk 0:02:36]}  O-O {[%clk 0:02:47]} 15. Nxd5 {[%clk 0:02:30]}  Qg6 {[%clk 0:02:45]} 16. Be2 {[%clk 0:02:10]}  Be4 {[%clk 0:02:38]} 17. Bf3 {[%clk 0:01:54]}  Bc2 {[%clk 0:02:33]} 18. Qd2 {[%clk 0:01:52]}  Rfe8 {[%clk 0:02:29]} 19. O-O {[%clk 0:01:51]}  Bb3 {[%clk 0:02:16]} 20. Nc3 {[%clk 0:01:47]}  Rad8 {[%clk 0:02:12]} 21. e4 {[%clk 0:01:37]}  Nxd4 {[%clk 0:02:11]} 22. Qg5 {[%clk 0:01:31]}  Qe6 {[%clk 0:02:05]} 23. Bg4 {[%clk 0:01:25]}  Qe5 {[%clk 0:02:01]} 24. Qxe5 {[%clk 0:01:23]}  Bxe5 {[%clk 0:02:02]} 25. Bg5 {[%clk 0:01:21]}  f6 {[%clk 0:02:00]} 26. Bxh4 {[%clk 0:01:21]}  Nc2 {[%clk 0:01:58]} 27. Rac1 {[%clk 0:01:16]}  Rd2 {[%clk 0:01:57]} 28. Nb1 {[%clk 0:01:11]}  Rd4 {[%clk 0:01:52]} 29. Nc3 {[%clk 0:01:07]}  Rd2 {[%clk 0:01:50]} 30. Rfd1 {[%clk 0:01:03]}  Red8 {[%clk 0:01:48]} 31. Rxd2 {[%clk 0:00:51]}  Rxd2 {[%clk 0:01:49]} 32. Nb1 {[%clk 0:00:43]}  Rd8 {[%clk 0:01:39]} 33. Bd1 {[%clk 0:00:42]}  Bxb2 {[%clk 0:01:34]} 34. Bxc2 {[%clk 0:00:38]}  Bxc2 {[%clk 0:01:34]} 35. Rxc2 {[%clk 0:00:34]}  Rd1+ {[%clk 0:01:34]} 36. Kh2 {[%clk 0:00:34]}  Rxb1 {[%clk 0:01:35]} 37. a4 {[%clk 0:00:33]}  Be5+ {[%clk 0:01:32]} 38. Bg3 {[%clk 0:00:31]}  Rb4 {[%clk 0:01:31]} 39. Bxe5 {[%clk 0:00:29]}  fxe5 {[%clk 0:01:32]} 40. Rc7 {[%clk 0:00:28]}  a5 {[%clk 0:01:27]} 41. f3 {[%clk 0:00:27]}  b6 {[%clk 0:01:25]} 42. Rb7 {[%clk 0:00:26]}  Kh7 {[%clk 0:01:25]} 43. Kg3 {[%clk 0:00:26]}  Kg6 {[%clk 0:01:25]} 44. Kg4 {[%clk 0:00:26]}  Kf6 {[%clk 0:01:24]} 45. h4 {[%clk 0:00:26]}  g6 {[%clk 0:01:20]} 46. h5 {[%clk 0:00:26]}  gxh5+ {[%clk 0:01:20]} 47. Kxh5 {[%clk 0:00:27]}  Rb2 {[%clk 0:01:20]} 48. Kh4 {[%clk 0:00:24]}  Ke6 {[%clk 0:01:18]} 49. g4 {[%clk 0:00:24]}  Kd6 {[%clk 0:01:18]} 50. g5 {[%clk 0:00:23]}  Kc6 {[%clk 0:01:14]} 51. Rf7 {[%clk 0:00:23]}  b5 {[%clk 0:00:58]} 52. axb5+ {[%clk 0:00:22]}  Kb6 {[%clk 0:00:42]} 53. g6 {[%clk 0:00:21]}  Rg2 {[%clk 0:00:41]} 54. Kh5 {[%clk 0:00:20]}  a4 {[%clk 0:00:41]} 55. Re7 {[%clk 0:00:20]}  a3 {[%clk 0:00:23]} 56. Rxe5 {[%clk 0:00:20]}  a2 {[%clk 0:00:18]} 57. Re6+ {[%clk 0:00:20]}  Kxb5 {[%clk 0:00:18]} 58. Re5+ {[%clk 0:00:19]}  Kb4 {[%clk 0:00:18]} 59. Rg5 {[%clk 0:00:19]}  Rh2+ {[%clk 0:00:17]} 60. Kg4 {[%clk 0:00:19]}  a1=Q {[%clk 0:00:18]} 61. g7 {[%clk 0:00:19]}  Rg2+ {[%clk 0:00:18]} 62. Kf5 {[%clk 0:00:19]}  Rxg5+ {[%clk 0:00:18]} 63. Kxg5 {[%clk 0:00:17]}  Qxg7+ {[%clk 0:00:18]} 0-1


[Site "https://www.chess.com"]

[Event "Titled Tuesday Blitz October 31 Late 2023"]
[White "NelsonLinda"]
[Black "GAO"]
[WhiteElo "2610"]
[BlackElo "2327"]
[Result "0-1"]
[Round "1"]
[TimeControl "180+1"]
[Date "2023.10.31"]
[WhiteClock "0:00:12"]
[BlackClock "0:00:37"]
[Board "117"]

1. g3 {[%clk 0:02:54]}  Nf6 {[%clk 0:02:57]} 2. b3 {[%clk 0:02:53]}  g6 {[%clk 0:02:55]} 3. Bb2 {[%clk 0:02:54]}  Bg7 {[%clk 0:02:55]} 4. e4 {[%clk 0:02:49]}  d6 {[%clk 0:02:50]} 5. d3 {[%clk 0:02:48]}  O-O {[%clk 0:02:49]} 6. Bg2 {[%clk 0:02:48]}  e5 {[%clk 0:02:49]} 7. Nd2 {[%clk 0:02:49]}  Nbd7 {[%clk 0:02:49]} 8. Ne2 {[%clk 0:02:49]}  a5 {[%clk 0:02:49]} 9. a3 {[%clk 0:02:48]}  Re8 {[%clk 0:02:47]} 10. O-O {[%clk 0:02:48]}  h6 {[%clk 0:02:48]} 11. h3 {[%clk 0:02:45]}  Nc5 {[%clk 0:02:48]} 12. f4 {[%clk 0:02:33]}  c6 {[%clk 0:02:41]} 13. Kh1 {[%clk 0:02:26]}  Bd7 {[%clk 0:02:40]} 14. Nc4 {[%clk 0:02:23]}  Qc7 {[%clk 0:02:37]} 15. b4 {[%clk 0:02:20]}  Na6 {[%clk 0:02:29]} 16. fxe5 {[%clk 0:02:08]}  dxe5 {[%clk 0:02:28]} 17. Nxa5 {[%clk 0:02:05]}  c5 {[%clk 0:02:12]} 18. Bc3 {[%clk 0:01:54]}  Qc8 {[%clk 0:02:06]} 19. Kh2 {[%clk 0:01:45]}  Nc7 {[%clk 0:02:05]} 20. Nc4 {[%clk 0:01:45]}  Rf8 {[%clk 0:01:55]} 21. Nb6 {[%clk 0:01:44]}  Qd8 {[%clk 0:01:53]} 22. Nxa8 {[%clk 0:01:44]}  Qxa8 {[%clk 0:01:53]} 23. bxc5 {[%clk 0:01:40]}  Ne6 {[%clk 0:01:53]} 24. Kh1 {[%clk 0:01:09]}  Nh5 {[%clk 0:01:45]} 25. Qe1 {[%clk 0:01:04]}  Qc8 {[%clk 0:01:42]} 26. Bb4 {[%clk 0:01:03]}  Ng5 {[%clk 0:01:41]} 27. g4 {[%clk 0:01:02]}  Nf4 {[%clk 0:01:39]} 28. Nxf4 {[%clk 0:00:59]}  exf4 {[%clk 0:01:40]} 29. Rxf4 {[%clk 0:00:59]}  h5 {[%clk 0:01:29]} 30. Bc3 {[%clk 0:00:53]}  hxg4 {[%clk 0:01:25]} 31. h4 {[%clk 0:00:53]}  Ne6 {[%clk 0:01:24]} 32. Bxg7 {[%clk 0:00:53]}  Kxg7 {[%clk 0:01:08]} 33. Qc3+ {[%clk 0:00:53]}  f6 {[%clk 0:01:03]} 34. Rxg4 {[%clk 0:00:50]}  Rh8 {[%clk 0:01:01]} 35. Rf1 {[%clk 0:00:49]}  Qd8 {[%clk 0:01:00]} 36. e5 {[%clk 0:00:47]}  f5 {[%clk 0:00:59]} 37. Rxf5 {[%clk 0:00:45]}  Rxh4+ {[%clk 0:00:56]} 38. Bh3 {[%clk 0:00:25]}  Rxg4 {[%clk 0:00:42]} 39. Bxg4 {[%clk 0:00:17]}  Qh4+ {[%clk 0:00:41]} 40. Kg1 {[%clk 0:00:14]}  Qxg4+ {[%clk 0:00:41]} 41. Kh2 {[%clk 0:00:15]}  Qxf5 {[%clk 0:00:40]} 42. d4 {[%clk 0:00:16]}  Bc6 {[%clk 0:00:39]} 43. d5 {[%clk 0:00:13]}  Bxd5 {[%clk 0:00:39]} 44. Qg3 {[%clk 0:00:13]}  Qxc2+ {[%clk 0:00:38]} 45. Kh3 {[%clk 0:00:13]}  Qf5+ {[%clk 0:00:38]} 46. Kh2 {[%clk 0:00:13]}  Nf4 {[%clk 0:00:38]} 47. e6 {[%clk 0:00:12]}  Bxe6 {[%clk 0:00:38]} 48. Qc3+ {[%clk 0:00:12]}  Qf6 {[%clk 0:00:37]} 49. Qb4 {[%clk 0:00:11]}  Qh4+ {[%clk 0:00:37]} 50. Kg1 {[%clk 0:00:12]}  Qg3+ {[%clk 0:00:37]} 51. Kf1 {[%clk 0:00:12]}  Bh3# {[%clk 0:00:37]} 0-1


[Site "https://www.chess.com"]

[Event "Titled Tuesday Blitz October 31 Late 2023"]
[White "Manukyan, Sargis A."]
[Black "Ward, Ieuan C"]
[WhiteFideId "13303970"]
[BlackFideId "406627"]
[WhiteElo "2604"]
[BlackElo "2316"]
[Result "1-0"]
[Round "1"]
[TimeControl "180+1"]
[Date "2023.10.31"]
[WhiteClock "0:00:32"]
[BlackClock "0:00:05"]
[Board "121"]

1. d4 {[%clk 0:03:00]}  Nf6 {[%clk 0:02:59]} 2. c4 {[%clk 0:03:00]}  e6 {[%clk 0:02:59]} 3. Nc3 {[%clk 0:02:59]}  d5 {[%clk 0:02:59]} 4. Nf3 {[%clk 0:02:57]}  Be7 {[%clk 0:02:58]} 5. Bg5 {[%clk 0:02:55]}  O-O {[%clk 0:02:58]} 6. cxd5 {[%clk 0:02:55]}  Nxd5 {[%clk 0:02:57]} 7. Bxe7 {[%clk 0:02:54]}  Nxe7 {[%clk 0:02:57]} 8. e4 {[%clk 0:02:54]}  Nd7 {[%clk 0:02:54]} 9. Be2 {[%clk 0:02:52]}  b6 {[%clk 0:02:53]} 10. O-O {[%clk 0:02:52]}  Bb7 {[%clk 0:02:54]} 11. Qd3 {[%clk 0:02:45]}  Ng6 {[%clk 0:02:53]} 12. Qe3 {[%clk 0:02:45]}  Nf6 {[%clk 0:02:47]} 13. h3 {[%clk 0:02:42]}  c6 {[%clk 0:02:45]} 14. Rad1 {[%clk 0:02:41]}  Qc7 {[%clk 0:02:44]} 15. Rd2 {[%clk 0:02:38]}  Rad8 {[%clk 0:02:42]} 16. Rfd1 {[%clk 0:02:39]}  h6 {[%clk 0:02:37]} 17. g3 {[%clk 0:02:34]}  Qb8 {[%clk 0:02:35]} 18. Kh2 {[%clk 0:02:33]}  Kh8 {[%clk 0:02:31]} 19. a3 {[%clk 0:02:32]}  Kg8 {[%clk 0:02:30]} 20. Bd3 {[%clk 0:02:33]}  Ne7 {[%clk 0:02:26]} 21. Bb1 {[%clk 0:02:33]}  Rfe8 {[%clk 0:02:24]} 22. e5 {[%clk 0:02:23]}  Nfd5 {[%clk 0:02:21]} 23. Qe4 {[%clk 0:02:24]}  g6 {[%clk 0:02:05]} 24. Qh4 {[%clk 0:02:05]}  Kg7 {[%clk 0:02:03]} 25. Be4 {[%clk 0:02:01]}  Nxc3 {[%clk 0:01:45]} 26. bxc3 {[%clk 0:01:55]}  c5 {[%clk 0:01:38]} 27. Qf4 {[%clk 0:01:25]}  Bxe4 {[%clk 0:01:31]} 28. Qxe4 {[%clk 0:01:25]}  cxd4 {[%clk 0:01:22]} 29. cxd4 {[%clk 0:01:24]}  Rd5 {[%clk 0:01:19]} 30. Rc2 {[%clk 0:01:20]}  Rc8 {[%clk 0:01:16]} 31. Rdc1 {[%clk 0:01:19]}  Rxc2 {[%clk 0:01:15]} 32. Qxc2 {[%clk 0:01:17]}  Nf5 {[%clk 0:01:11]} 33. Qc3 {[%clk 0:01:09]}  Qd8 {[%clk 0:01:11]} 34. Rd1 {[%clk 0:01:07]}  h5 {[%clk 0:01:07]} 35. Kg2 {[%clk 0:01:05]}  Qd7 {[%clk 0:01:06]} 36. g4 {[%clk 0:01:04]}  hxg4 {[%clk 0:01:05]} 37. hxg4 {[%clk 0:01:05]}  Nh6 {[%clk 0:01:05]} 38. Kg3 {[%clk 0:01:03]}  a5 {[%clk 0:00:38]} 39. Qe3 {[%clk 0:01:03]}  b5 {[%clk 0:00:35]} 40. Qf4 {[%clk 0:01:00]}  Qe7 {[%clk 0:00:33]} 41. Rh1 {[%clk 0:00:57]}  Ng8 {[%clk 0:00:32]} 42. Kg2 {[%clk 0:00:47]}  b4 {[%clk 0:00:31]} 43. axb4 {[%clk 0:00:47]}  axb4 {[%clk 0:00:32]} 44. Ng5 {[%clk 0:00:46]}  Nh6 {[%clk 0:00:05]} 45. Nxe6+ {[%clk 0:00:32]} 1-0


[Site "https://www.chess.com"]

[Event "Titled Tuesday Blitz October 31 Late 2023"]
[White "Shtivelband, Richard"]
[Black "Colbow, Collin"]
[WhiteFideId "2017342"]
[BlackFideId "16201132"]
[WhiteElo "2315"]
[BlackElo "2604"]
[Result "0-1"]
[Round "1"]
[TimeControl "180+1"]
[Date "2023.10.31"]
[WhiteClock "0:00:36"]
[BlackClock "0:01:29"]
[Board "122"]

1. d4 {[%clk 0:02:58]}  Nf6 {[%clk 0:02:56]} 2. c4 {[%clk 0:02:57]}  g6 {[%clk 0:02:57]} 3. Nc3 {[%clk 0:02:56]}  Bg7 {[%clk 0:02:58]} 4. e4 {[%clk 0:02:56]}  d6 {[%clk 0:02:59]} 5. Nf3 {[%clk 0:02:56]}  O-O {[%clk 0:02:59]} 6. h3 {[%clk 0:02:55]}  Nfd7 {[%clk 0:02:48]} 7. Be3 {[%clk 0:02:51]}  c5 {[%clk 0:02:36]} 8. Qd2 {[%clk 0:02:48]}  cxd4 {[%clk 0:02:33]} 9. Bxd4 {[%clk 0:02:47]}  Ne5 {[%clk 0:02:27]} 10. Nxe5 {[%clk 0:02:44]}  dxe5 {[%clk 0:02:27]} 11. Be3 {[%clk 0:02:42]}  Qxd2+ {[%clk 0:02:25]} 12. Bxd2 {[%clk 0:02:40]}  Nc6 {[%clk 0:02:26]} 13. Be3 {[%clk 0:02:33]}  Rd8 {[%clk 0:02:22]} 14. Rd1 {[%clk 0:02:21]}  Rxd1+ {[%clk 0:02:21]} 15. Kxd1 {[%clk 0:02:21]}  Nd4 {[%clk 0:02:18]} 16. Nd5 {[%clk 0:02:10]}  Kf8 {[%clk 0:02:03]} 17. c5 {[%clk 0:01:56]}  Bd7 {[%clk 0:01:56]} 18. b4 {[%clk 0:01:42]}  Ba4+ {[%clk 0:01:50]} 19. Kd2 {[%clk 0:01:34]}  Rd8 {[%clk 0:01:41]} 20. Bxd4 {[%clk 0:01:23]}  exd4 {[%clk 0:01:42]} 21. Kd3 {[%clk 0:00:49]}  e6 {[%clk 0:01:29]} 22. Nf4 {[%clk 0:00:48]}  Bh6 {[%clk 0:01:29]} 23. Ne2 {[%clk 0:00:36]}  Bb5+ {[%clk 0:01:29]} 0-1


[Site "https://www.chess.com"]

[Event "Titled Tuesday Blitz October 31 Late 2023"]
[White "Karamsetty, Jeevan"]
[Black "SlippperyWhenWet"]
[WhiteFideId "2025337"]
[WhiteElo "2597"]
[BlackElo "2315"]
[Result "1-0"]
[Round "1"]
[TimeControl "180+1"]
[Date "2023.10.31"]
[WhiteClock "0:01:29"]
[BlackClock "0:00:33"]
[Board "123"]

1. e4 {[%clk 0:03:00]}  c5 {[%clk 0:02:56]} 2. Nc3 {[%clk 0:02:57]}  Nc6 {[%clk 0:02:54]} 3. Bb5 {[%clk 0:02:58]}  Nd4 {[%clk 0:02:53]} 4. Bc4 {[%clk 0:02:58]}  e6 {[%clk 0:02:53]} 5. Nge2 {[%clk 0:02:58]}  a6 {[%clk 0:02:50]} 6. a4 {[%clk 0:02:58]}  Ne7 {[%clk 0:02:33]} 7. Nxd4 {[%clk 0:02:52]}  cxd4 {[%clk 0:02:33]} 8. Ne2 {[%clk 0:02:53]}  Nc6 {[%clk 0:02:33]} 9. d3 {[%clk 0:02:52]}  Bb4+ {[%clk 0:02:31]} 10. c3 {[%clk 0:02:52]}  dxc3 {[%clk 0:02:30]} 11. bxc3 {[%clk 0:02:52]}  Be7 {[%clk 0:02:31]} 12. O-O {[%clk 0:02:49]}  d5 {[%clk 0:02:31]} 13. exd5 {[%clk 0:02:48]}  exd5 {[%clk 0:02:28]} 14. Ba2 {[%clk 0:02:49]}  O-O {[%clk 0:02:27]} 15. Nf4 {[%clk 0:02:47]}  Bd6 {[%clk 0:02:03]} 16. Nxd5 {[%clk 0:02:39]}  Qh4 {[%clk 0:02:02]} 17. g3 {[%clk 0:02:39]}  Qh3 {[%clk 0:02:00]} 18. Nf4 {[%clk 0:02:35]}  Qh6 {[%clk 0:01:40]} 19. Ne6 {[%clk 0:02:31]}  Qh3 {[%clk 0:01:35]} 20. Ng5 {[%clk 0:02:06]}  Qf5 {[%clk 0:01:24]} 21. Qf3 {[%clk 0:01:48]}  Qg6 {[%clk 0:01:21]} 22. d4 {[%clk 0:01:35]}  Bf5 {[%clk 0:00:52]} 23. Bf4 {[%clk 0:01:31]}  Bxf4 {[%clk 0:00:47]} 24. Qxf4 {[%clk 0:01:32]}  h6 {[%clk 0:00:47]} 25. Nf3 {[%clk 0:01:29]}  Rfe8 {[%clk 0:00:33]} 26. Nh4 {[%clk 0:01:29]} 1-0


[Site "https://www.chess.com"]